[Event "Titled Tuesday Blitz June 20 Early 2023"]
[White "Sanudula, K M Dahamdi"]
[Black "Vafin, Ayrat"]
[WhiteFideId "9932470"]
[BlackFideId "4146530"]
[WhiteElo "1501"]
[BlackElo "2317"]
[Result "0-1"]
[Round "8"]
[TimeControl "180+2"]
[Date "2023.06.20"]
[WhiteClock "0:00:01"]
[BlackClock "0:00:19"]
[Board "173"]

1. d4 {[%clk 0:02:33]}  d5 {[%clk 0:02:58]} 2. e3 {[%clk 0:02:33]}  Nf6 {[%clk 0:02:58]} 3. Bd3 {[%clk 0:02:33]}  Bg4 {[%clk 0:02:57]} 4. f3 {[%clk 0:02:33]}  Bh5 {[%clk 0:02:57]} 5. Nd2 {[%clk 0:02:33]}  e6 {[%clk 0:02:55]} 6. c3 {[%clk 0:02:33]}  Bd6 {[%clk 0:02:51]} 7. Qb3 {[%clk 0:02:33]}  b6 {[%clk 0:02:50]} 8. f4 {[%clk 0:02:32]}  O-O {[%clk 0:02:48]} 9. Ngf3 {[%clk 0:02:31]}  c5 {[%clk 0:02:42]} 10. Qd1 {[%clk 0:02:27]}  cxd4 {[%clk 0:01:53]} 11. cxd4 {[%clk 0:02:23]}  Nc6 {[%clk 0:01:53]} 12. O-O {[%clk 0:02:20]}  Nb4 {[%clk 0:01:52]} 13. Bb1 {[%clk 0:02:19]}  Rc8 {[%clk 0:01:42]} 14. a3 {[%clk 0:02:15]}  Nc6 {[%clk 0:01:42]} 15. Qe1 {[%clk 0:02:11]}  Bxf3 {[%clk 0:01:28]} 16. Nxf3 {[%clk 0:02:07]}  Na5 {[%clk 0:01:28]} 17. Bd3 {[%clk 0:01:51]}  Ne4 {[%clk 0:01:00]} 18. Ne5 {[%clk 0:00:17]}  Nb3 {[%clk 0:00:33]} 19. Bd2 {[%clk 0:00:12]}  Nexd2 {[%clk 0:00:21]} 20. Rf2 {[%clk 0:00:12]}  Nxa1 {[%clk 0:00:19]} 21. Qxd2 {[%clk 0:00:09]}  Nb3 {[%clk 0:00:17]} 22. Qd1 {[%clk 0:00:07]}  Rc1 {[%clk 0:00:15]} 23. Qxc1 {[%clk 0:00:05]}  Nxc1 {[%clk 0:00:16]} 24. h3 {[%clk 0:00:05]}  Bxe5 {[%clk 0:00:17]} 25. Kh2 {[%clk 0:00:06]}  Nxd3 {[%clk 0:00:17]} 26. fxe5 {[%clk 0:00:04]}  Nxf2 {[%clk 0:00:17]} 27. Kg3 {[%clk 0:00:04]}  Ne4+ {[%clk 0:00:18]} 28. Kh2 {[%clk 0:00:03]}  Qh4 {[%clk 0:00:18]} 29. g3 {[%clk 0:00:03]}  Qxg3+ {[%clk 0:00:18]} 30. Kh1 {[%clk 0:00:01]}  Nf2# {[%clk 0:00:19]} 0-1


[Site "https://www.chess.com"]

[Event "Titled Tuesday Blitz June 20 Early 2023"]
[White "Politov, Pavel Y."]
[Black "Osinovsky, Stepan"]
[WhiteFideId "24110515"]
[BlackFideId "4157354"]
[WhiteElo "2066"]
[BlackElo "2222"]
[Result "1-0"]
[Round "8"]
[TimeControl "180+2"]
[Date "2023.06.20"]
[WhiteClock "0:00:11"]
[BlackClock "0:00:00"]
[Board "174"]

1. e4 {[%clk 0:03:00]}  e5 {[%clk 0:02:56]} 2. Nf3 {[%clk 0:02:59]}  Nc6 {[%clk 0:02:52]} 3. Bc4 {[%clk 0:02:59]}  Nf6 {[%clk 0:02:51]} 4. d3 {[%clk 0:02:57]}  Be7 {[%clk 0:02:49]} 5. O-O {[%clk 0:02:54]}  d6 {[%clk 0:02:47]} 6. c3 {[%clk 0:02:54]}  h6 {[%clk 0:02:46]} 7. Nbd2 {[%clk 0:02:51]}  g5 {[%clk 0:02:45]} 8. Nb1 {[%clk 0:02:21]}  g4 {[%clk 0:02:39]} 9. Nfd2 {[%clk 0:02:19]}  h5 {[%clk 0:02:39]} 10. Qb3 {[%clk 0:02:17]}  Na5 {[%clk 0:02:29]} 11. Bxf7+ {[%clk 0:02:00]}  Kf8 {[%clk 0:02:27]} 12. Qa4 {[%clk 0:01:56]}  c6 {[%clk 0:02:24]} 13. Bg6 {[%clk 0:01:51]}  b5 {[%clk 0:02:17]} 14. Qd1 {[%clk 0:01:49]}  Nb7 {[%clk 0:01:45]} 15. Bf5 {[%clk 0:01:40]}  Nc5 {[%clk 0:01:43]} 16. Bxc8 {[%clk 0:01:35]}  Rxc8 {[%clk 0:01:39]} 17. Qe2 {[%clk 0:01:35]}  Ne6 {[%clk 0:01:36]} 18. Nb3 {[%clk 0:01:28]}  Kg7 {[%clk 0:01:13]} 19. f4 {[%clk 0:00:44]}  exf4 {[%clk 0:00:51]} 20. Bxf4 {[%clk 0:00:39]}  Rf8 {[%clk 0:00:31]} 21. Be3 {[%clk 0:00:32]}  Qd7 {[%clk 0:00:25]} 22. N1d2 {[%clk 0:00:31]}  Nh7 {[%clk 0:00:18]} 23. d4 {[%clk 0:00:28]}  d5 {[%clk 0:00:14]} 24. e5 {[%clk 0:00:23]}  Neg5 {[%clk 0:00:08]} 25. Bxg5 {[%clk 0:00:18]}  Nxg5 {[%clk 0:00:07]} 26. Qe3 {[%clk 0:00:14]}  h4 {[%clk 0:00:05]} 27. Rf4 {[%clk 0:00:12]}  Rxf4 {[%clk 0:00:04]} 28. Qxf4 {[%clk 0:00:12]}  Rf8 {[%clk 0:00:00]} 29. Qe3 {[%clk 0:00:11]} 1-0


[Site "https://www.chess.com"]

[Event "Titled Tuesday Blitz June 20 Early 2023"]
[White "Porat, Tori"]
[Black "Ouellet, Maili-Jade"]
[WhiteFideId "30982626"]
[BlackFideId "2620472"]
[WhiteElo "1752"]
[BlackElo "2077"]
[Result "0-1"]
[Round "8"]
[TimeControl "180+2"]
[Date "2023.06.20"]
[WhiteClock "0:00:00"]
[BlackClock "0:00:10"]
[Board "176"]

1. d4 {[%clk 0:03:00]}  Nf6 {[%clk 0:02:58]} 2. c4 {[%clk 0:03:00]}  g6 {[%clk 0:02:58]} 3. Nc3 {[%clk 0:02:56]}  d5 {[%clk 0:02:57]} 4. cxd5 {[%clk 0:02:56]}  Nxd5 {[%clk 0:02:58]} 5. e4 {[%clk 0:02:56]}  Nxc3 {[%clk 0:02:58]} 6. bxc3 {[%clk 0:02:57]}  Bg7 {[%clk 0:02:58]} 7. Bc4 {[%clk 0:02:57]}  c5 {[%clk 0:02:58]} 8. Ne2 {[%clk 0:02:57]}  O-O {[%clk 0:02:57]} 9. O-O {[%clk 0:02:56]}  Nc6 {[%clk 0:02:53]} 10. Be3 {[%clk 0:02:56]}  Qc7 {[%clk 0:02:48]} 11. Rc1 {[%clk 0:02:53]}  Rd8 {[%clk 0:02:45]} 12. d5 {[%clk 0:02:43]}  Ne5 {[%clk 0:02:38]} 13. Bd3 {[%clk 0:02:39]}  c4 {[%clk 0:02:32]} 14. Bc2 {[%clk 0:02:38]}  e6 {[%clk 0:02:21]} 15. Bf4 {[%clk 0:02:31]}  exd5 {[%clk 0:02:17]} 16. exd5 {[%clk 0:02:31]}  Bg4 {[%clk 0:02:15]} 17. f3 {[%clk 0:02:27]}  Bd7 {[%clk 0:02:12]} 18. Nd4 {[%clk 0:02:23]}  Qc5 {[%clk 0:02:07]} 19. Re1 {[%clk 0:02:16]}  Re8 {[%clk 0:01:42]} 20. Kh1 {[%clk 0:02:09]}  Rad8 {[%clk 0:01:41]} 21. Be3 {[%clk 0:02:03]}  Qxd5 {[%clk 0:01:39]} 22. Qe2 {[%clk 0:02:01]}  b5 {[%clk 0:01:28]} 23. Be4 {[%clk 0:02:00]}  Qd6 {[%clk 0:01:26]} 24. Rcd1 {[%clk 0:01:51]}  Qc7 {[%clk 0:01:25]} 25. Qb2 {[%clk 0:01:39]}  a6 {[%clk 0:01:24]} 26. Bf4 {[%clk 0:01:33]}  Qc8 {[%clk 0:01:14]} 27. h3 {[%clk 0:01:16]}  Nc6 {[%clk 0:01:03]} 28. Nxc6 {[%clk 0:01:03]}  Bxc6 {[%clk 0:01:02]} 29. Rxd8 {[%clk 0:01:02]}  Rxd8 {[%clk 0:01:01]} 30. Bxc6 {[%clk 0:00:58]}  Qxc6 {[%clk 0:01:02]} 31. Qc2 {[%clk 0:00:52]}  Rd3 {[%clk 0:00:57]} 32. Be5 {[%clk 0:00:46]}  Qe6 {[%clk 0:00:47]} 33. Bg3 {[%clk 0:00:38]}  Qd7 {[%clk 0:00:45]} 34. Re4 {[%clk 0:00:22]}  h5 {[%clk 0:00:22]} 35. Qe2 {[%clk 0:00:20]}  Kh7 {[%clk 0:00:17]} 36. Re7 {[%clk 0:00:19]}  Qd5 {[%clk 0:00:17]} 37. Rxf7 {[%clk 0:00:19]}  Qxf7 {[%clk 0:00:17]} 38. Qe4 {[%clk 0:00:13]}  Qd5 {[%clk 0:00:16]} 39. Qe7 {[%clk 0:00:12]}  Rxc3 {[%clk 0:00:14]} 40. Kh2 {[%clk 0:00:12]}  Rc2 {[%clk 0:00:14]} 41. Qe3 {[%clk 0:00:08]}  Qd2 {[%clk 0:00:12]} 42. Qg1 {[%clk 0:00:03]}  Bd4 {[%clk 0:00:10]} 43. Qf1 {[%clk 0:00:00]}  Rc1 {[%clk 0:00:10]} 0-1


[Site "https://www.chess.com"]

[Event "Titled Tuesday Blitz June 20 Early 2023"]
[White "Freile Martin, Javier"]
[Black "Dzhaparov, Medet"]
[WhiteFideId "3600165"]
[BlackFideId "13803689"]
[WhiteElo "2320"]
[BlackElo "1690"]
[Result "1-0"]
[Round "8"]
[TimeControl "180+2"]
[Date "2023.06.20"]
[WhiteClock "0:01:37"]
[BlackClock "0:00:08"]
[Board "179"]

1. c4 {[%clk 0:03:00]}  e5 {[%clk 0:02:23]} 2. Nc3 {[%clk 0:02:58]}  Nf6 {[%clk 0:02:23]} 3. Nf3 {[%clk 0:02:57]}  Nc6 {[%clk 0:02:22]} 4. a3 {[%clk 0:02:57]}  d5 {[%clk 0:02:22]} 5. cxd5 {[%clk 0:02:56]}  Nxd5 {[%clk 0:02:23]} 6. e4 {[%clk 0:02:56]}  Nxc3 {[%clk 0:02:22]} 7. bxc3 {[%clk 0:02:56]}  Be7 {[%clk 0:02:22]} 8. h3 {[%clk 0:02:53]}  O-O {[%clk 0:02:21]} 9. Bb5 {[%clk 0:02:53]}  Bf6 {[%clk 0:02:20]} 10. O-O {[%clk 0:02:50]}  a6 {[%clk 0:02:18]} 11. Ba4 {[%clk 0:02:49]}  b5 {[%clk 0:02:16]} 12. Bb3 {[%clk 0:02:49]}  Na5 {[%clk 0:02:14]} 13. Ba2 {[%clk 0:02:45]}  Bb7 {[%clk 0:02:12]} 14. Re1 {[%clk 0:02:43]}  Qd7 {[%clk 0:02:08]} 15. d4 {[%clk 0:02:41]}  exd4 {[%clk 0:02:08]} 16. cxd4 {[%clk 0:02:41]}  Be7 {[%clk 0:02:07]} 17. Ne5 {[%clk 0:02:37]}  Qe8 {[%clk 0:02:00]} 18. Qc2 {[%clk 0:02:28]}  c6 {[%clk 0:01:57]} 19. Bd2 {[%clk 0:02:26]}  Qd8 {[%clk 0:01:51]} 20. Qc3 {[%clk 0:02:22]}  Nc4 {[%clk 0:01:44]} 21. Nxc4 {[%clk 0:02:21]}  bxc4 {[%clk 0:01:45]} 22. Bxc4 {[%clk 0:02:20]}  c5 {[%clk 0:01:41]} 23. d5 {[%clk 0:02:20]}  Bf6 {[%clk 0:01:40]} 24. e5 {[%clk 0:02:20]}  Bg5 {[%clk 0:01:40]} 25. f4 {[%clk 0:02:17]}  Bh4 {[%clk 0:01:38]} 26. d6 {[%clk 0:02:12]}  Bxe1 {[%clk 0:01:35]} 27. Rxe1 {[%clk 0:02:11]}  Qc8 {[%clk 0:01:34]} 28. Qg3 {[%clk 0:02:09]}  Kh8 {[%clk 0:01:21]} 29. Bc3 {[%clk 0:02:08]}  Qf5 {[%clk 0:01:03]} 30. e6 {[%clk 0:02:02]}  f6 {[%clk 0:00:51]} 31. e7 {[%clk 0:01:57]}  Rfb8 {[%clk 0:00:26]} 32. Be6 {[%clk 0:01:54]}  Qg6 {[%clk 0:00:18]} 33. d7 {[%clk 0:01:52]}  Bc6 {[%clk 0:00:16]} 34. Qxg6 {[%clk 0:01:51]}  hxg6 {[%clk 0:00:15]} 35. Ba5 {[%clk 0:01:37]}  Ra7 {[%clk 0:00:08]} 36. d8=Q+ {[%clk 0:01:37]} 1-0


[Site "https://www.chess.com"]

[Event "Titled Tuesday Blitz June 20 Early 2023"]
[White "zano2023"]
[Black "Paiva, Henrique M A Albergaria"]
[BlackFideId "1920995"]
[WhiteElo "2153"]
[BlackElo "2007"]
[Result "1-0"]
[Round "8"]
[TimeControl "180+2"]
[Date "2023.06.20"]
[WhiteClock "0:00:58"]
[BlackClock "0:00:00"]
[Board "180"]

1. d4 {[%clk 0:03:00]}  d5 {[%clk 0:02:54]} 2. Nf3 {[%clk 0:03:00]}  c6 {[%clk 0:02:54]} 3. Nbd2 {[%clk 0:03:00]}  Nf6 {[%clk 0:02:55]} 4. e3 {[%clk 0:03:00]}  Bf5 {[%clk 0:02:51]} 5. c4 {[%clk 0:03:00]}  e6 {[%clk 0:02:52]} 6. Qb3 {[%clk 0:03:00]}  Qc7 {[%clk 0:02:50]} 7. Bd3 {[%clk 0:02:59]}  Bg6 {[%clk 0:02:49]} 8. O-O {[%clk 0:02:58]}  Nbd7 {[%clk 0:02:47]} 9. Re1 {[%clk 0:02:58]}  Be7 {[%clk 0:02:22]} 10. h3 {[%clk 0:02:57]}  O-O {[%clk 0:02:20]} 11. Qc2 {[%clk 0:02:55]}  Rac8 {[%clk 0:02:08]} 12. b3 {[%clk 0:02:53]}  e5 {[%clk 0:02:00]} 13. Nxe5 {[%clk 0:02:45]}  Nxe5 {[%clk 0:02:01]} 14. dxe5 {[%clk 0:02:46]}  Qxe5 {[%clk 0:02:02]} 15. Rb1 {[%clk 0:02:42]}  Bd6 {[%clk 0:02:00]} 16. Nf3 {[%clk 0:02:41]}  Qh5 {[%clk 0:01:58]} 17. Bb2 {[%clk 0:02:33]}  Ne4 {[%clk 0:01:44]} 18. a3 {[%clk 0:02:23]}  Rfe8 {[%clk 0:01:24]} 19. b4 {[%clk 0:02:22]}  Rcd8 {[%clk 0:01:04]} 20. c5 {[%clk 0:02:15]}  Bb8 {[%clk 0:01:02]} 21. Bd4 {[%clk 0:02:15]}  Ng5 {[%clk 0:00:57]} 22. Nxg5 {[%clk 0:02:06]}  Qxg5 {[%clk 0:00:58]} 23. a4 {[%clk 0:01:54]}  Be4 {[%clk 0:00:51]} 24. Bxe4 {[%clk 0:01:52]}  dxe4 {[%clk 0:00:41]} 25. Rbd1 {[%clk 0:01:36]}  Qe7 {[%clk 0:00:40]} 26. Qc3 {[%clk 0:01:33]}  Qc7 {[%clk 0:00:38]} 27. g3 {[%clk 0:01:34]}  f6 {[%clk 0:00:38]} 28. b5 {[%clk 0:01:30]}  Qc8 {[%clk 0:00:36]} 29. Kh2 {[%clk 0:01:27]}  Qf5 {[%clk 0:00:35]} 30. Rd2 {[%clk 0:01:24]}  h5 {[%clk 0:00:26]} 31. h4 {[%clk 0:01:17]}  Qg4 {[%clk 0:00:25]} 32. bxc6 {[%clk 0:01:13]}  bxc6 {[%clk 0:00:22]} 33. Qc4+ {[%clk 0:01:10]}  Kh8 {[%clk 0:00:21]} 34. Bc3 {[%clk 0:01:09]}  Qxh4+ {[%clk 0:00:20]} 35. Kg2 {[%clk 0:01:09]}  Qg4 {[%clk 0:00:21]} 36. Red1 {[%clk 0:01:04]}  h4 {[%clk 0:00:20]} 37. Rh1 {[%clk 0:01:04]}  g5 {[%clk 0:00:17]} 38. Qe2 {[%clk 0:01:00]}  Kg8 {[%clk 0:00:18]} 39. Qxg4 {[%clk 0:01:00]}  hxg3 {[%clk 0:00:17]} 40. fxg3 {[%clk 0:00:59]}  Rxd2+ {[%clk 0:00:00]} 41. Bxd2 {[%clk 0:00:58]} 1-0


[Site "https://www.chess.com"]

[Event "Titled Tuesday Blitz June 20 Early 2023"]
[White "Kamsky, Gata"]
[Black "Vachier-Lagrave, Maxime"]
[WhiteFideId "2000024"]
[BlackFideId "623539"]
[WhiteElo "2660"]
[BlackElo "2739"]
[Result "1/2-1/2"]
[Round "9"]
[TimeControl "180+2"]
[Date "2023.06.20"]
[WhiteClock "0:00:46"]
[BlackClock "0:00:48"]
[Board "1"]

1. d4 {[%clk 0:03:00]}  Nf6 {[%clk 0:02:58]} 2. Nf3 {[%clk 0:03:00]}  g6 {[%clk 0:02:58]} 3. Bf4 {[%clk 0:02:58]}  Bg7 {[%clk 0:02:58]} 4. c3 {[%clk 0:02:58]}  O-O {[%clk 0:02:58]} 5. Nbd2 {[%clk 0:02:56]}  d5 {[%clk 0:02:57]} 6. h3 {[%clk 0:02:55]}  Nbd7 {[%clk 0:02:49]} 7. e3 {[%clk 0:02:55]}  c5 {[%clk 0:02:46]} 8. Be2 {[%clk 0:02:54]}  Qb6 {[%clk 0:02:44]} 9. Qb3 {[%clk 0:02:54]}  Re8 {[%clk 0:02:41]} 10. O-O {[%clk 0:02:52]}  e6 {[%clk 0:02:38]} 11. a4 {[%clk 0:02:47]}  Qxb3 {[%clk 0:02:32]} 12. Nxb3 {[%clk 0:02:47]}  c4 {[%clk 0:02:33]} 13. Nbd2 {[%clk 0:02:46]}  b6 {[%clk 0:02:33]} 14. b3 {[%clk 0:02:42]}  cxb3 {[%clk 0:02:33]} 15. Nxb3 {[%clk 0:02:42]}  Bb7 {[%clk 0:02:33]} 16. a5 {[%clk 0:02:26]}  Rec8 {[%clk 0:02:29]} 17. Rfc1 {[%clk 0:02:24]}  Bf8 {[%clk 0:02:18]} 18. Nfd2 {[%clk 0:02:21]}  Ne8 {[%clk 0:02:16]} 19. c4 {[%clk 0:02:13]}  dxc4 {[%clk 0:02:10]} 20. Bxc4 {[%clk 0:02:10]}  Bd6 {[%clk 0:02:08]} 21. Bb5 {[%clk 0:02:06]}  Rxc1+ {[%clk 0:01:58]} 22. Rxc1 {[%clk 0:02:04]}  Bxf4 {[%clk 0:01:58]} 23. Bxd7 {[%clk 0:02:01]}  Bd6 {[%clk 0:01:57]} 24. Bc6 {[%clk 0:01:57]}  Bxc6 {[%clk 0:01:55]} 25. Rxc6 {[%clk 0:01:57]}  bxa5 {[%clk 0:01:52]} 26. Nxa5 {[%clk 0:01:56]}  Rb8 {[%clk 0:01:51]} 27. g4 {[%clk 0:01:54]}  Bb4 {[%clk 0:01:37]} 28. Ndc4 {[%clk 0:01:42]}  Nf6 {[%clk 0:01:34]} 29. Ra6 {[%clk 0:01:38]}  Bxa5 {[%clk 0:01:32]} 30. Rxa5 {[%clk 0:01:37]}  Rb7 {[%clk 0:01:31]} 31. Kg2 {[%clk 0:01:34]}  h6 {[%clk 0:01:29]} 32. Kf3 {[%clk 0:01:34]}  Kg7 {[%clk 0:01:27]} 33. Nd6 {[%clk 0:01:33]}  Rd7 {[%clk 0:01:14]} 34. Nc8 {[%clk 0:01:33]}  Rc7 {[%clk 0:01:13]} 35. Nxa7 {[%clk 0:01:32]}  Nd5 {[%clk 0:01:11]} 36. Nb5 {[%clk 0:01:27]}  Rc6 {[%clk 0:01:10]} 37. e4 {[%clk 0:01:24]}  Nb4 {[%clk 0:01:09]} 38. Ra7 {[%clk 0:01:20]}  g5 {[%clk 0:01:06]} 39. e5 {[%clk 0:01:17]}  Nd5 {[%clk 0:01:06]} 40. Nd6 {[%clk 0:01:13]}  Rc3+ {[%clk 0:01:05]} 41. Ke2 {[%clk 0:01:13]}  Nf4+ {[%clk 0:01:05]} 42. Ke1 {[%clk 0:01:11]}  Rxh3 {[%clk 0:01:03]} 43. Rxf7+ {[%clk 0:01:09]}  Kg8 {[%clk 0:01:03]} 44. Rf6 {[%clk 0:01:03]}  Rd3 {[%clk 0:01:01]} 45. Rxh6 {[%clk 0:00:59]}  Rxd4 {[%clk 0:01:00]} 46. f3 {[%clk 0:00:54]}  Rd5 {[%clk 0:00:49]} 47. Ne4 {[%clk 0:00:50]}  Rxe5 {[%clk 0:00:49]} 48. Kf2 {[%clk 0:00:46]}  Kg7 {[%clk 0:00:48]} 1/2-1/2


[Site "https://www.chess.com"]

[Event "Titled Tuesday Blitz June 20 Early 2023"]
[White "Makhnev, Denis"]
[Black "Kollars, Dmitrij"]
[WhiteFideId "13707647"]
[BlackFideId "12909572"]
[WhiteElo "2515"]
[BlackElo "2584"]
[Result "0-1"]
[Round "9"]
[TimeControl "180+2"]
[Date "2023.06.20"]
[WhiteClock "0:00:00"]
[BlackClock "0:00:09"]
[Board "6"]

1. d4 {[%clk 0:03:00]}  Nf6 {[%clk 0:02:50]} 2. c4 {[%clk 0:03:00]}  e6 {[%clk 0:02:50]} 3. Nf3 {[%clk 0:03:01]}  d5 {[%clk 0:02:49]} 4. g3 {[%clk 0:03:01]}  Bb4+ {[%clk 0:02:48]} 5. Bd2 {[%clk 0:03:02]}  a5 {[%clk 0:02:48]} 6. Bg2 {[%clk 0:02:59]}  O-O {[%clk 0:02:48]} 7. Qc2 {[%clk 0:02:58]}  c5 {[%clk 0:02:48]} 8. dxc5 {[%clk 0:02:59]}  d4 {[%clk 0:02:47]} 9. Bxb4 {[%clk 0:02:59]}  axb4 {[%clk 0:02:48]} 10. Ne5 {[%clk 0:03:00]}  Qc7 {[%clk 0:02:40]} 11. Nd3 {[%clk 0:03:00]}  Nc6 {[%clk 0:02:41]} 12. Nd2 {[%clk 0:02:50]}  e5 {[%clk 0:02:40]} 13. O-O {[%clk 0:02:49]}  Bf5 {[%clk 0:02:40]} 14. Qb3 {[%clk 0:02:42]}  Nd7 {[%clk 0:02:35]} 15. Ne4 {[%clk 0:02:34]}  Kh8 {[%clk 0:02:20]} 16. Rfe1 {[%clk 0:02:26]}  Bg6 {[%clk 0:02:14]} 17. Nxb4 {[%clk 0:02:07]}  Bxe4 {[%clk 0:01:53]} 18. Bxe4 {[%clk 0:02:08]}  Nxc5 {[%clk 0:01:53]} 19. Nd5 {[%clk 0:02:09]}  Qd6 {[%clk 0:01:17]} 20. Qc2 {[%clk 0:02:08]}  Rae8 {[%clk 0:01:17]} 21. Bg2 {[%clk 0:01:50]}  f5 {[%clk 0:01:15]} 22. b4 {[%clk 0:01:50]}  Ne6 {[%clk 0:01:07]} 23. c5 {[%clk 0:01:49]}  Qd8 {[%clk 0:01:06]} 24. a3 {[%clk 0:01:48]}  e4 {[%clk 0:01:06]} 25. Nb6 {[%clk 0:01:47]}  Ne5 {[%clk 0:01:01]} 26. Rad1 {[%clk 0:01:44]}  Qg5 {[%clk 0:00:51]} 27. Nc4 {[%clk 0:01:41]}  Nxc4 {[%clk 0:00:39]} 28. Qxc4 {[%clk 0:01:41]}  h5 {[%clk 0:00:39]} 29. Qd5 {[%clk 0:00:54]}  h4 {[%clk 0:00:34]} 30. a4 {[%clk 0:00:54]}  hxg3 {[%clk 0:00:33]} 31. hxg3 {[%clk 0:00:54]}  Rf6 {[%clk 0:00:29]} 32. Qd7 {[%clk 0:00:20]}  Ref8 {[%clk 0:00:27]} 33. Qxb7 {[%clk 0:00:16]}  Rg6 {[%clk 0:00:18]} 34. Qd5 {[%clk 0:00:11]}  e3 {[%clk 0:00:11]} 35. Qf3 {[%clk 0:00:09]}  f4 {[%clk 0:00:11]} 36. g4 {[%clk 0:00:10]}  Qf6 {[%clk 0:00:09]} 37. Qh3+ {[%clk 0:00:08]}  Rh6 {[%clk 0:00:09]} 38. Qf3 {[%clk 0:00:08]}  Ng5 {[%clk 0:00:10]} 39. Qd5 {[%clk 0:00:08]}  f3 {[%clk 0:00:10]} 40. exf3 {[%clk 0:00:08]}  Qf4 {[%clk 0:00:10]} 41. Qxd4 {[%clk 0:00:06]}  Nxf3+ {[%clk 0:00:09]} 42. Bxf3 {[%clk 0:00:00]}  Qh2+ {[%clk 0:00:09]} 0-1


[Site "https://www.chess.com"]

[Event "Titled Tuesday Blitz June 20 Early 2023"]
[White "Eljanov, Pavel"]
[Black "Kramnik, Vladimir"]
[WhiteFideId "14102951"]
[BlackFideId "4101588"]
[WhiteElo "2598"]
[BlackElo "2703"]
[Result "0-1"]
[Round "9"]
[TimeControl "180+2"]
[Date "2023.06.20"]
[WhiteClock "0:00:31"]
[BlackClock "0:00:14"]
[Board "7"]

1. d4 {[%clk 0:02:56]}  Nf6 {[%clk 0:02:56]} 2. c4 {[%clk 0:02:55]}  e6 {[%clk 0:02:54]} 3. Nc3 {[%clk 0:02:55]}  d5 {[%clk 0:02:54]} 4. cxd5 {[%clk 0:02:54]}  exd5 {[%clk 0:02:54]} 5. Bg5 {[%clk 0:02:54]}  c6 {[%clk 0:02:54]} 6. e3 {[%clk 0:02:54]}  h6 {[%clk 0:02:52]} 7. Bh4 {[%clk 0:02:54]}  Be7 {[%clk 0:02:53]} 8. Bd3 {[%clk 0:02:54]}  O-O {[%clk 0:02:53]} 9. h3 {[%clk 0:02:50]}  Re8 {[%clk 0:02:51]} 10. Bg3 {[%clk 0:02:50]}  Nbd7 {[%clk 0:02:46]} 11. Nf3 {[%clk 0:02:49]}  Nb6 {[%clk 0:02:36]} 12. O-O {[%clk 0:02:45]}  a5 {[%clk 0:02:27]} 13. Qc2 {[%clk 0:02:40]}  a4 {[%clk 0:02:25]} 14. a3 {[%clk 0:02:33]}  Be6 {[%clk 0:02:24]} 15. Rae1 {[%clk 0:02:28]}  Nc4 {[%clk 0:02:11]} 16. Ne5 {[%clk 0:02:15]}  Qa5 {[%clk 0:01:45]} 17. f4 {[%clk 0:02:15]}  Nd6 {[%clk 0:01:39]} 18. f5 {[%clk 0:02:04]}  Bc8 {[%clk 0:01:40]} 19. Bf4 {[%clk 0:01:57]}  c5 {[%clk 0:01:34]} 20. g4 {[%clk 0:01:48]}  cxd4 {[%clk 0:01:29]} 21. exd4 {[%clk 0:01:48]}  Qb6 {[%clk 0:01:26]} 22. Qf2 {[%clk 0:01:46]}  Bf8 {[%clk 0:01:08]} 23. Kh2 {[%clk 0:01:24]}  Nde4 {[%clk 0:00:56]} 24. Bxe4 {[%clk 0:01:20]}  dxe4 {[%clk 0:00:54]} 25. Nxe4 {[%clk 0:01:17]}  Nxe4 {[%clk 0:00:46]} 26. Rxe4 {[%clk 0:01:18]}  Qb5 {[%clk 0:00:36]} 27. f6 {[%clk 0:01:06]}  g5 {[%clk 0:00:31]} 28. Bxg5 {[%clk 0:00:55]}  hxg5 {[%clk 0:00:29]} 29. Qe3 {[%clk 0:00:49]}  Bh6 {[%clk 0:00:22]} 30. Nxf7 {[%clk 0:00:35]}  Kxf7 {[%clk 0:00:15]} 31. Rxe8 {[%clk 0:00:31]}  Qxe8 {[%clk 0:00:14]} 0-1


[Site "https://www.chess.com"]

[Event "Titled Tuesday Blitz June 20 Early 2023"]
[White "Drozdowski, Kacper"]
[Black "Paravyan, David"]
[WhiteFideId "1136720"]
[BlackFideId "4194985"]
[WhiteElo "2497"]
[BlackElo "2563"]
[Result "0-1"]
[Round "9"]
[TimeControl "180+2"]
[Date "2023.06.20"]
[WhiteClock "0:00:01"]
[BlackClock "0:00:40"]
[Board "8"]

1. e4 {[%clk 0:03:00]}  e5 {[%clk 0:03:00]} 2. Nf3 {[%clk 0:03:00]}  Nf6 {[%clk 0:03:01]} 3. Nxe5 {[%clk 0:03:00]}  d6 {[%clk 0:03:01]} 4. Nf3 {[%clk 0:03:01]}  Nxe4 {[%clk 0:03:02]} 5. d4 {[%clk 0:03:01]}  d5 {[%clk 0:03:02]} 6. Bd3 {[%clk 0:03:02]}  Bd6 {[%clk 0:03:03]} 7. O-O {[%clk 0:03:01]}  O-O {[%clk 0:03:04]} 8. c4 {[%clk 0:03:01]}  c6 {[%clk 0:03:04]} 9. Nc3 {[%clk 0:03:01]}  Nxc3 {[%clk 0:03:05]} 10. bxc3 {[%clk 0:03:02]}  dxc4 {[%clk 0:03:06]} 11. Bxc4 {[%clk 0:03:02]}  Bg4 {[%clk 0:03:06]} 12. h3 {[%clk 0:03:02]}  Bh5 {[%clk 0:03:07]} 13. Re1 {[%clk 0:03:02]}  Nd7 {[%clk 0:03:06]} 14. Bd3 {[%clk 0:03:00]}  Re8 {[%clk 0:03:00]} 15. Rxe8+ {[%clk 0:02:57]}  Qxe8 {[%clk 0:03:01]} 16. Bd2 {[%clk 0:02:30]}  Nf6 {[%clk 0:03:00]} 17. Rb1 {[%clk 0:02:21]}  b5 {[%clk 0:02:56]} 18. Qe1 {[%clk 0:01:53]}  Bxf3 {[%clk 0:02:53]} 19. Qxe8+ {[%clk 0:01:51]}  Rxe8 {[%clk 0:02:54]} 20. gxf3 {[%clk 0:01:51]}  g6 {[%clk 0:02:41]} 21. c4 {[%clk 0:01:43]}  bxc4 {[%clk 0:02:42]} 22. Bxc4 {[%clk 0:01:43]}  Re7 {[%clk 0:02:06]} 23. Kf1 {[%clk 0:01:41]}  Kg7 {[%clk 0:02:05]} 24. Bd3 {[%clk 0:01:31]}  Rd7 {[%clk 0:01:52]} 25. Rc1 {[%clk 0:01:27]}  Bc7 {[%clk 0:01:33]} 26. Rxc6 {[%clk 0:01:14]}  Bb6 {[%clk 0:01:34]} 27. Ke2 {[%clk 0:01:09]}  Bxd4 {[%clk 0:01:32]} 28. Bc4 {[%clk 0:00:58]}  Bxf2 {[%clk 0:01:27]} 29. Bh6+ {[%clk 0:00:38]}  Kxh6 {[%clk 0:01:27]} 30. Rxf6 {[%clk 0:00:39]}  Kg7 {[%clk 0:01:16]} 31. Rxf7+ {[%clk 0:00:19]}  Rxf7 {[%clk 0:01:16]} 32. Bxf7 {[%clk 0:00:20]}  Kxf7 {[%clk 0:01:17]} 33. Kxf2 {[%clk 0:00:20]}  Kf6 {[%clk 0:01:17]} 34. f4 {[%clk 0:00:17]}  Ke6 {[%clk 0:01:06]} 35. Ke3 {[%clk 0:00:16]}  Kd5 {[%clk 0:01:06]} 36. Kd3 {[%clk 0:00:13]}  a5 {[%clk 0:00:58]} 37. a4 {[%clk 0:00:12]}  h6 {[%clk 0:00:54]} 38. Kc3 {[%clk 0:00:07]}  Kc5 {[%clk 0:00:36]} 39. h4 {[%clk 0:00:05]}  h5 {[%clk 0:00:37]} 40. Kd3 {[%clk 0:00:03]}  Kb4 {[%clk 0:00:37]} 41. Kd4 {[%clk 0:00:02]}  Kxa4 {[%clk 0:00:38]} 42. Kc4 {[%clk 0:00:01]}  Ka3 {[%clk 0:00:38]} 43. Kc3 {[%clk 0:00:01]}  a4 {[%clk 0:00:38]} 44. Kc2 {[%clk 0:00:02]}  Kb4 {[%clk 0:00:39]} 45. Kb2 {[%clk 0:00:01]}  Kc4 {[%clk 0:00:40]} 0-1


[Site "https://www.chess.com"]